bitfinex-derivatives/quotes_SOLF0:USTF0_20250409
["timestamp","ask_amount","ask_price","bid_price","bid_amount"]
[1744226479375,0.05431934,119.36,119.34,8.44581704]
[1744226480879,8.43641934,119.36,119.34,0.06281704]
[1744226481574,8.43641934,119.36,119.34,8.44611704]
[1744226481879,0.05431934,119.36,119.34,8.44611704]
[1744226482083,0.05431934,119.36,119.35,8.3827]
[1744226482780,0.05431934,119.36,119.34,3.54681704]
[1744226482781,51.28,119.39,119.36,8.3818]
[1744226483477,8.381,119.38,119.35,8.3823]
[1744226483683,51.28,119.39,119.34,3.54681704]
[1744226483875,51.28,119.39,119.34,11.92991704]
[1744226484485,8.3817,119.37,119.34,11.92991704]
[1744226484782,51.28,119.39,119.35,8.3827]
[1744226485182,8.3816,119.37,119.34,0.06281704]
[1744226485386,51.28,119.39,119.34,0.06281704]
[1744226485685,8.3824,119.36,119.34,0.06281704]
[1744226485883,3.3975,119.43,119.34,0.06281704]
[1744226486189,3.3975,119.43,119.35,26.28446782]
[1744226486388,3.3975,119.43,119.37,8.43884605]
[1744226486885,51.28,119.42,119.37,0.05784605]
[1744226487292,8.3804,119.39,119.37,0.05784605]
[1744226487778,8.3795,119.4,119.37,0.05784605]
[1744226487978,51.28,119.42,119.37,0.05784605]
[1744226488375,8.3802,119.39,119.37,0.05784605]
[1744226488576,51.28,119.42,119.37,0.05784605]
[1744226488986,8.3806,119.38,119.37,0.05784605]
[1744226489181,51.26,119.38,119.31,3.4824]
[1744226489387,8.3831,119.35,119.29,7.1837]
[1744226489578,51.26,119.38,119.3,3.5337]
[1744226489978,8.3834,119.34,119.31,8.3849]
[1744226490178,8.3834,119.34,119.3,3.5337]
[1744226490385,8.43973814,119.34,119.31,0.06461417]
[1744226490586,0.05633814,119.34,119.32,8.3845]
[1744226490780,0.05633814,119.34,119.31,0.06461417]
[1744226490987,0.05633814,119.34,119.33,8.3841]
[1744226491683,3.814e-05,119.34,119.33,8.3841]
[1744226491889,51.26,119.38,119.32,26.28446782]
[1744226492288,51.26,119.38,119.33,62.0]
[1744226492989,51.26,119.38,119.34,0.06110863]
[1744226493585,51.26,119.38,119.36,8.3818]
[1744226493783,51.26,119.38,119.34,0.06110863]
[1744226493978,51.26,119.38,119.34,8.44420863]
[1744226494192,26.28446782,119.4,119.34,0.06110863]
[1744226494891,26.28446782,119.4,119.34,8.44410863]
[1744226495279,29.82536782,119.41,119.34,8.44410863]
[1744226495484,29.82536782,119.41,119.34,0.06110863]
[1744226495990,8.3825,119.36,119.34,0.06110863]
[1744226496489,51.26,119.37,119.34,0.06110863]
[1744226496894,6.8752,119.36,119.34,0.06110863]
[1744226497091,8.3827,119.35,119.34,0.06110863]
[1744226497390,6.8752,119.36,119.34,0.06110863]
[1744226497596,6.8752,119.4,119.34,0.06110863]
[1744226498089,8.3817,119.37,119.34,0.06110863]
[1744226498297,6.8752,119.4,119.34,0.06110863]
[1744226498698,8.3818,119.37,119.34,0.06110863]
[1744226499498,6.8752,119.4,119.34,0.06110863]
[1744226500200,8.3816,119.37,119.34,0.06110863]
[1744226500392,6.8752,119.4,119.34,0.06110863]
[1744226500590,26.28446782,119.39,119.28,26.28446782]
[1744226500794,26.28446782,119.37,119.27,3.3497]
[1744226500995,26.28446782,119.35,119.27,8.38799982]
[1744226501199,6.6811,119.34,119.27,8.38799982]
[1744226501496,8.3866,119.3,119.27,8.38799982]
[1744226501806,0.05779864,119.3,119.27,8.45143599]
[1744226501995,0.05779864,119.3,119.28,8.3876]
[1744226502196,0.05779864,119.3,119.27,0.06343617]
[1744226502390,0.05779864,119.3,119.28,8.3873]
[1744226502700,0.05779864,119.3,119.27,0.06343617]
[1744226502897,8.44409864,119.3,119.27,0.06343617]
[1744226503201,0.05779864,119.3,119.27,0.06343617]
[1744226505602,0.05779864,119.3,119.29,8.3869]
[1744226505806,0.05779864,119.3,119.27,0.06343617]
[1744226506402,0.05779864,119.3,119.28,8.3873]
[1744226506598,0.05779864,119.3,119.27,0.06343617]
[1744226506808,0.05779864,119.3,119.28,8.3876]
[1744226507005,8.44399864,119.3,119.27,0.06343617]
[1744226507194,0.05779864,119.3,119.27,0.06343617]
[1744226507598,8.3875,119.29,119.27,0.06343617]
[1744226507806,0.05779864,119.3,119.27,0.06343617]
[1744226508200,8.3876,119.28,119.27,0.06343617]
[1744226509509,0.05779864,119.3,119.27,0.06343617]
[1744226510602,8.3873,119.29,119.27,0.06343617]
[1744226511202,0.05779864,119.3,119.27,0.06343617]
[1744226511803,0.05779864,119.3,119.27,8.45143617]
[1744226512011,0.05779864,119.3,119.27,0.06343617]
[1744226512411,0.05779864,119.3,119.28,8.3871]
[1744226512605,0.05779864,119.3,119.27,0.06343617]
[1744226514517,8.3873,119.29,119.27,0.06343617]
[1744226514707,0.05779864,119.3,119.27,0.06343617]
[1744226515120,8.3876,119.28,119.27,0.06343617]
[1744226515509,3.3329,119.29,119.26,0.47801459]
[1744226516704,3.3329,119.29,119.26,0.54185078]
[1744226516907,8.3883,119.27,119.26,0.54185078]
[1744226517110,8.3883,119.27,119.25,0.52891191]
[1744226517302,11.9046,119.28,119.25,0.52891191]
[1744226517510,51.06,119.27,119.25,0.52891191]
[1744226518117,59.4488,119.27,119.25,0.52891191]
[1744226518317,51.12183194,119.27,119.25,0.5865548]
[1744226519122,59.51043194,119.27,119.25,0.5865548]
[1744226519319,77.40629976,119.27,119.23,0.58272319]
[1744226519623,51.12183194,119.27,119.23,0.58272319]
[1744226520406,51.12183194,119.27,119.24,0.05732315]
[1744226520713,8.3893,119.26,119.24,0.05732315]
[1744226520914,51.12183194,119.27,119.24,0.05732315]
[1744226521106,8.3897,119.25,119.24,0.05732315]
[1744226522528,8.3904,119.24,119.23,4.634e-05]
[1744226522924,16.4716057,119.25,119.22,2.91e-05]
[1744226523226,28.3862057,119.23,119.22,2.91e-05]
[1744226523411,19.9951057,119.23,119.2,0.66733626]
[1744226523613,1.46025219,119.27,119.22,16.4716057]
[1744226523812,3.5164,119.28,119.22,16.4716057]
[1744226524121,3.5164,119.28,119.22,24.8631057]
[1744226524122,8.3894,119.26,119.22,24.8631057]
[1744226524325,51.08,119.26,119.2,4.16413626]
[1744226524523,16.4716057,119.25,119.2,0.66733626]
[1744226525025,0.06239947,119.24,119.21,0.06354688]
[1744226525627,51.08,119.23,119.21,0.06354688]
[1744226526524,32.9432114,119.22,119.17,0.72918622]
[1744226526729,16.4716057,119.21,119.17,0.72918622]
[1744226526924,3.4828,119.22,119.17,0.72918622]
[1744226527223,16.4716057,119.25,119.17,0.72918622]
[1744226527528,77.45150454,119.24,119.17,0.72918622]
[1744226527729,0.06227231,119.22,119.2,0.05373343]
[1744226527932,8.3925,119.21,119.2,0.05373343]
[1744226529127,8.3925,119.21,119.2,3.343e-05]
[1744226529332,8.3946,119.18,119.17,0.72918622]
[1744226529527,0.06227231,119.22,119.18,8.3943]
[1744226529829,8.3939,119.2,119.17,0.72918622]
[1744226530224,8.3939,119.2,119.17,9.12418622]
[1744226530530,8.3941,119.19,119.17,0.7892279]
[1744226530733,51.16142854,119.2,119.17,0.7892279]
[1744226532226,8.3946,119.18,119.17,0.7892279]
[1744226533326,51.16142854,119.2,119.17,0.7892279]
[1744226533631,0.06142854,119.2,119.17,0.7892279]
[1744226533928,51.1,119.24,119.18,33.01950454]
[1744226534124,51.1,119.24,119.19,3.3339]
[1744226534728,51.1,119.24,119.22,8.3912]
[1744226534932,51.1,119.24,119.18,6.648]
[1744226535124,51.16212665,119.24,119.22,0.06337479]
[1744226535534,8.3911,119.23,119.22,7.479e-05]
[1744226535723,3.4426,119.23,119.17,0.72918622]
[1744226536124,29.81410454,119.23,119.17,0.72918622]
[1744226536528,8.3936,119.2,119.17,9.12448622]
[1744226536833,51.1739122,119.2,119.17,0.78542588]
[1744226538232,8.3946,119.18,119.17,0.78542588]
[1744226538431,51.1739122,119.2,119.17,0.78542588]
[1744226538832,26.37150454,119.19,119.16,0.75609468]
[1744226539027,29.89210454,119.19,119.16,0.75609468]
[1744226539424,8.3954,119.17,119.16,0.75609468]
[1744226539733,634.07210454,119.19,119.15,6.79e-06]
[1744226540235,634.07210454,119.19,119.16,0.05309042]
[1744226540430,0.06249672,119.18,119.15,6.79e-06]
[1744226541239,26.37150454,119.17,119.15,6.79e-06]
[1744226541542,8.3961,119.16,119.15,1.472e-05]
[1744226541835,50.9,119.16,119.12,3.249e-05]
[1744226542030,26.37150454,119.14,119.11,7.447e-05]
[1744226542235,8.3989,119.12,119.11,7.447e-05]
[1744226542536,59.3189,119.12,119.11,7.447e-05]
[1744226543438,50.92,119.12,119.11,7.447e-05]
[1744226544127,59.3189,119.12,119.11,7.447e-05]
[1744226544336,50.92,119.12,119.11,7.447e-05]
[1744226546141,59.3189,119.12,119.11,7.447e-05]
[1744226546843,50.92,119.12,119.11,7.447e-05]
[1744226547223,50.92,119.12,119.11,8.39967447]
[1744226547738,0.06384396,119.13,119.12,8.3989]
[1744226549037,0.06384396,119.13,119.11,8.39927447]
[1744226549239,0.06384396,119.13,119.11,7.447e-05]
[1744226550732,0.06384396,119.13,119.12,8.3989]
[1744226551335,50.92,119.2,119.12,376.9242]
[1744226551535,50.92,119.2,119.14,26.37150454]
[1744226551838,50.92,119.2,119.19,8.3939]
[1744226552334,0.05772163,119.21,119.18,26.43065785]
[1744226552544,50.92,119.28,119.2,26.37150454]
[1744226552736,50.92,119.28,119.22,26.37150454]
[1744226553623,0.06149586,119.26,119.24,0.06018669]
[1744226554032,0.06149586,119.26,119.25,8.3897]
[1744226554433,50.92,119.28,119.26,8.3888]
[1744226554633,101.0259655,119.3,119.26,8.3888]
[1744226554939,151.9259655,119.3,119.26,8.3888]
[1744226555341,151.9259655,119.3,119.19,368.5646]
[1744226555342,143.5393655,119.3,119.19,368.5646]
[1744226555533,3.2368,119.29,119.2,62.0]
[1744226555732,8.44393935,119.26,119.23,0.05565404]
[1744226555924,0.05453935,119.26,119.23,0.05565404]
[1744226556730,50.95453935,119.26,119.23,0.05565404]
[1744226557335,50.95453935,119.26,119.23,5.404e-05]
[1744226557531,26.37150454,119.25,119.16,3.5371]
[1744226557731,26.37150454,119.25,119.16,6.8682]
[1744226557931,29.76300454,119.25,119.16,6.8682]
[1744226558635,8.3936,119.2,119.19,0.05943323]
[1744226560538,50.95854497,119.22,119.12,6.8682]
[1744226560539,26.37150454,119.21,119.12,6.8682]
[1744226560728,26.37150454,119.19,119.12,6.8682]
[1744226560930,50.9,119.18,119.12,6.8682]
[1744226561526,8.3962,119.16,119.12,15.2667]
[1744226561739,8.45771273,119.16,119.14,0.05365476]
[1744226562049,0.06151273,119.16,119.14,0.05365476]
[1744226562336,8.3968,119.15,119.14,0.05365476]
[1744226562727,8.45791273,119.16,119.14,0.05365476]
[1744226563036,0.06151273,119.16,119.14,0.05365476]
[1744226565433,0.06151273,119.16,119.14,8.45075476]
[1744226566542,0.06151273,119.16,119.15,8.3968]
[1744226566935,0.06151273,119.16,119.14,0.05365476]
[1744226567933,0.06151273,119.16,119.15,8.3968]
[1744226568646,6.906,119.23,119.14,0.05365476]
[1744226568833,654.86,119.24,119.15,26.37150454]
[1744226569143,663.2506,119.24,119.17,26.37150454]
[1744226569740,0.05983051,119.22,119.19,0.05715857]
[1744226570336,57.2319,119.28,119.21,26.37150454]
[1744226570743,8.3897,119.26,119.19,26.37150454]
[1744226571044,50.68,119.28,119.21,26.37150454]
[1744226571248,59.0679,119.28,119.22,3.5063]
[1744226571435,59.0679,119.28,119.25,8.3894]
[1744226571635,0.06273009,119.26,119.25,8.3894]
[1744226572144,0.06273009,119.26,119.23,0.05990438]
[1744226573443,0.06273009,119.26,119.25,8.3897]
[1744226577956,0.06273009,119.26,119.24,8.3902]
[1744226578251,0.06273009,119.26,119.23,26.43140892]
[1744226578458,0.06273009,119.26,119.25,8.3897]
[1744226579656,8.386,119.31,119.28,8.3873]
[1744226580156,8.3841,119.33,119.27,26.37150454]
[1744226580552,50.66,119.36,119.32,8.3844]
[1744226580757,0.05868813,119.31,119.29,0.0540463]
[1744226580943,50.66,119.36,119.28,10.0806]
[1744226581143,8.384,119.34,119.31,8.3855]
[1744226581361,0.05582426,119.33,119.31,8.3855]
[1744226581557,0.05582426,119.33,119.31,0.06149149]
[1744226581759,8.44062426,119.33,119.31,0.06149149]
[1744226582260,0.05582426,119.33,119.31,8.44679149]
[1744226582458,0.05582426,119.33,119.31,0.06149149]
[1744226582869,0.05582426,119.33,119.32,8.3848]
[1744226583772,50.64,119.4,119.34,8.383]
[1744226583969,50.64,119.4,119.33,26.37150454]
[1744226584270,50.64,119.4,119.35,26.37150454]
[1744226584475,8.3781,119.42,119.39,8.3799]
[1744226584676,603.82,119.43,119.39,8.3799]
[1744226585171,0.0613757,119.42,119.4,0.05511894]
[1744226585864,0.0613757,119.42,119.4,8.43381894]
[1744226586469,0.0613757,119.42,119.41,8.3785]
[1744226586879,0.0613757,119.42,119.4,0.05511894]
[1744226587369,8.3785,119.41,119.4,0.05511894]
[1744226587575,0.0613757,119.42,119.4,0.05511894]
[1744226587877,8.3785,119.41,119.4,0.05511894]
[1744226588371,8.4394757,119.42,119.4,0.05511894]
[1744226588874,0.0613757,119.42,119.4,8.43391894]
[1744226589076,0.0613757,119.42,119.4,0.05511894]
[1744226589379,664.1315,119.49,119.41,26.37150454]
[1744226589380,8.3753,119.46,119.41,26.37150454]
[1744226589572,664.1315,119.49,119.42,3.2221]
[1744226589768,654.32,119.49,119.42,3.2221]
[1744226589969,8.3746,119.47,119.44,8.3761]
[1744226590169,50.62,119.53,119.43,26.37150454]
[1744226590369,0.05976626,119.47,119.46,8.375]
[1744226590565,8.3725,119.5,119.45,26.37150454]
[1744226590772,0.06232653,119.48,119.45,26.4289973]
[1744226590976,8.3718,119.51,119.46,62.0]
[1744226591174,8.3718,119.51,119.46,65.2552]
[1744226591376,50.62,119.53,119.47,29.71690454]
[1744226591781,50.62,119.53,119.47,394.71690454]
[1744226592083,8.3716,119.51,119.48,8.3732]
[1744226592273,0.05400797,119.51,119.49,0.05393957]
[1744226593183,0.05400797,119.51,119.49,8.42653957]
[1744226593483,0.05400797,119.51,119.49,0.05393957]
[1744226593682,8.42600797,119.51,119.49,0.05393957]
[1744226593981,0.05400797,119.51,119.49,0.05393957]
[1744226594186,8.42550797,119.51,119.49,0.05393957]
[1744226594487,0.05400797,119.51,119.49,0.05393957]
[1744226594883,8.3722,119.5,119.49,0.05393957]
[1744226596885,8.42580797,119.51,119.49,0.05393957]
[1744226597290,0.05400797,119.51,119.49,0.05393957]
[1744226597471,8.3722,119.5,119.49,0.05393957]
[1744226597984,18.18361068,119.63,119.49,0.05393957]
[1744226598181,50.36,119.59,119.49,26.42544411]
[1744226598580,8.369,119.55,119.49,0.05393957]
[1744226598782,50.36,119.59,119.49,0.05393957]
[1744226598982,76.73150454,119.59,119.49,29.51374411]
[1744226599181,76.73150454,119.59,119.51,8.3711]
[1744226599388,0.05118721,119.54,119.49,394.51374411]
[1744226599583,0.05118721,119.54,119.49,394.45980454]
[1744226599891,679.69150454,119.62,119.51,26.37150454]
[1744226600076,9.5677,119.61,119.51,26.37150454]
[1744226600383,26.37150454,119.6,119.51,26.37150454]
[1744226600593,9.5677,119.61,119.51,26.37150454]
[1744226600785,8.367,119.58,119.54,0.0532142]
[1744226600984,9.5677,119.61,119.54,0.0532142]
[1744226601181,50.34,119.65,119.58,8.3664]
[1744226601382,1.52787757,119.64,119.55,26.37150454]
[1744226601585,9.5677,119.67,119.6,0.05288089]
[1744226601784,8.3634,119.63,119.6,0.05288089]
[1744226602186,9.5677,119.67,119.6,0.05288089]
[1744226602383,1.52760161,119.66,119.6,365.05288089]
[1744226602587,26.37150454,119.66,119.58,3.2519]
[1744226602891,26.37150454,119.66,119.62,0.05342738]
[1744226602892,8.3631,119.63,119.62,0.05342738]
[1744226603290,32.76600454,119.65,119.56,50.32]
[1744226603591,32.76600454,119.65,119.54,1029.8]
[1744226603986,32.76600454,119.65,119.56,8.3676]
[1744226604187,32.76600454,119.65,119.54,427.0]
[1744226604389,0.05163735,119.61,119.58,0.05602616]
[1744226604691,50.37163735,119.61,119.58,0.05602616]
[1744226605093,8.3659,119.59,119.58,0.05602616]
[1744226607785,3.3425,119.6,119.49,394.63190454]
[1744226607989,3.3425,119.6,119.52,26.37150454]
[1744226608389,3.3425,119.6,119.5,26.37150454]
[1744226608589,8.3705,119.53,119.5,8.3718]
[1744226608784,0.05820739,119.56,119.49,6.3379]
[1744226608987,76.69150454,119.57,119.5,0.06205673]
[1744226609182,8.3715,119.51,119.5,0.06205673]
[1744226615197,8.3757,119.45,119.44,9.4453]
[1744226615405,50.32,119.49,119.4,26.37150454]
[1744226615700,50.32,119.48,119.4,26.37150454]
[1744226616000,50.32,119.48,119.39,35.42590454]
[1744226616302,8.3768,119.44,119.41,8.3781]
[1744226616596,0.06016857,119.45,119.42,0.05488535]
[1744226616795,8.3738,119.48,119.45,8.3753]
[1744226616999,0.05621251,119.45,119.42,0.05381532]
[1744226617303,50.32,119.5,119.41,26.37150454]
[1744226617593,0.06373336,119.45,119.41,26.37150454]
[1744226617797,0.06373336,119.45,119.44,0.05695589]
[1744226617996,8.3767,119.44,119.41,8.3781]
[1744226618192,8.3767,119.44,119.43,0.06327078]
[1744226618803,0.06373336,119.45,119.43,0.06327078]
[1744226619205,0.06373336,119.45,119.44,8.3764]
[1744226621202,50.32,119.51,119.43,26.43477532]
[1744226621400,50.32,119.51,119.43,26.37150454]
[1744226621709,8.374,119.48,119.43,26.37150454]
[1744226621917,50.32,119.51,119.45,26.37150454]
[1744226622208,8.3711,119.52,119.49,8.3725]
[1744226622388,0.06036837,119.49,119.47,0.0608266]
[1744226622587,50.32,119.54,119.47,0.0608266]
[1744226622789,50.32,119.54,119.47,26.43233114]
[1744226622987,0.0612909,119.52,119.47,26.43233114]
[1744226623797,0.0612909,119.52,119.5,8.3718]
[1744226624201,0.0612909,119.52,119.5,70.43185757]
[1744226624402,0.0612909,119.52,119.51,8.3715]
[1744226624604,0.0612909,119.52,119.5,62.06005757]
[1744226624902,8.4323909,119.52,119.5,0.06005757]
[1744226625103,0.0612909,119.52,119.5,0.06005757]
[1744226625604,8.3715,119.51,119.5,0.06005757]
[1744226628199,8.3715,119.51,119.5,49.41166137]
[1744226632701,8.3739,119.48,119.42,5.9485]
[1744226632901,8.3739,119.48,119.45,8.3753]
[1744226633110,6.1745,119.52,119.42,5.9485]
[1744226633311,8.3734,119.49,119.46,8.3746]
[1744226633811,8.3734,119.49,119.42,6.1746]
[1744226634108,8.43281544,119.49,119.46,0.06158538]
[1744226634410,8.3736,119.48,119.46,8.43618538]
[1744226634804,0.05941544,119.49,119.46,0.06158538]
[1744226635109,8.3741,119.48,119.46,0.06158538]
[1744226635714,8.3743,119.47,119.46,0.06158538]
[1744226636012,0.05941544,119.49,119.46,0.06158538]
[1744226636608,50.17941544,119.49,119.46,0.06158538]
[1744226636808,8.3743,119.47,119.46,0.06158538]
[1744226640316,3.1199,119.48,119.41,8.3784]
[1744226640515,3.131,119.46,119.39,2.9481]
[1744226640715,8.3767,119.44,119.39,2.9481]
[1744226640913,8.3767,119.44,119.41,8.3782]
[1744226641209,8.3767,119.44,119.39,2.9481]
[1744226641423,8.43444241,119.44,119.41,8.4309639]
[1744226641618,0.05774241,119.44,119.41,0.0530639]
[1744226643320,0.05774241,119.44,119.42,8.3774]
[1744226643916,8.43434241,119.44,119.42,8.3774]
[1744226644421,0.05774241,119.44,119.42,8.3774]
[1744226644823,0.05774241,119.44,119.41,0.0530639]
[1744226645320,0.05774241,119.44,119.42,8.3772]
[1744226645519,0.05774241,119.44,119.41,0.0530639]
[1744226645917,8.43444241,119.44,119.41,8.4311639]
[1744226646122,0.05774241,119.44,119.41,0.0530639]
[1744226647123,0.05774241,119.44,119.41,8.4311639]
[1744226647320,0.05774241,119.44,119.41,0.0530639]
[1744226647724,0.05774241,119.44,119.43,8.3771]
[1744226648719,0.05774241,119.44,119.42,8.3774]
[1744226648925,0.05774241,119.44,119.41,0.0530639]
[1744226649329,8.3771,119.43,119.41,0.0530639]
[1744226649530,0.05774241,119.44,119.41,0.0530639]
[1744226650923,8.3778,119.42,119.41,0.0530639]
[1744226651528,11.5253,119.43,119.41,0.0530639]
[1744226651932,3.1481,119.43,119.41,0.0530639]
[1744226653129,8.3778,119.42,119.41,0.0530639]
[1744226653927,8.3799,119.39,119.35,2.9077]
[1744226654124,50.14,119.4,119.35,2.9077]
[1744226654441,8.38,119.39,119.35,2.9077]
[1744226654818,50.14,119.4,119.35,2.9077]
[1744226655024,0.05519497,119.39,119.36,0.0614255]
[1744226655421,0.05519497,119.39,119.38,8.3806]
[1744226656226,0.05519497,119.39,119.36,0.0614255]
[1744226657328,8.3806,119.38,119.36,0.0614255]
[1744226657534,0.05519497,119.39,119.36,0.0614255]
[1744226658032,0.05519497,119.39,119.37,8.381]
[1744226658432,0.05519497,119.39,119.36,0.0614255]
[1744226658632,8.43559497,119.39,119.37,8.3811]
[1744226658930,0.05519497,119.39,119.36,0.0614255]
[1744226659127,8.3813,119.37,119.36,0.0614255]
[1744226659318,0.05519497,119.39,119.31,3.0331]
[1744226659319,16.440991,119.38,119.31,3.0331]
[1744226659521,49.94,119.37,119.31,3.0331]
[1744226659728,8.3826,119.36,119.31,3.0331]
[1744226659927,49.94,119.37,119.31,3.0331]
[1744226660126,8.383,119.35,119.32,8.3841]
[1744226660323,49.94,119.37,119.31,3.0331]
[1744226660525,0.05929851,119.35,119.32,0.05868521]
[1744226660721,8.3832,119.35,119.32,8.3845]
[1744226660925,8.44467826,119.35,119.32,8.4463]
[1744226661120,0.06147826,119.35,119.32,0.0618]
[1744226661730,8.44427826,119.35,119.32,8.4463]
[1744226661933,0.06147826,119.35,119.32,0.0618]
[1744226662935,0.06147826,119.35,119.32,8.4461]
[1744226663332,8.3841,119.33,119.32,0.0618]
[1744226663635,0.06147826,119.35,119.32,0.0618]
[1744226665737,0.06147826,119.35,119.34,26.31409133]
[1744226666139,8.3795,119.4,119.34,26.31409133]
[1744226666636,8.3795,119.4,119.37,8.3809]
[1744226666822,52.8738,119.41,119.34,26.31409133]
[1744226667432,0.05913098,119.39,119.36,0.06408479]
[1744226667930,0.05913098,119.39,119.38,8.3806]
[1744226668335,0.05913098,119.39,119.36,0.06408479]
[1744226668631,0.05913098,119.39,119.37,8.3813]
[1744226669234,0.05913098,119.39,119.38,8.3806]
[1744226671139,0.05913098,119.39,119.37,8.381]
[1744226671335,0.05913098,119.39,119.36,0.06408479]
[1744226672132,8.3813,119.37,119.36,0.06408479]
[1744226672333,58.3413,119.37,119.36,0.06408479]
[1744226674847,8.3838,119.34,119.3,6.1441]
[1744226675650,8.3838,119.34,119.31,8.385]
[1744226675940,8.4429,119.34,119.31,8.44517781]
[1744226676843,0.0591,119.34,119.32,8.3847]
[1744226677045,0.0591,119.34,119.31,0.05997781]
[1744226677943,0.0591,119.34,119.33,8.3841]
[1744226685545,602.94,119.42,119.39,8.3799]
[1744226685748,49.96,119.43,119.39,16.43699476]
[1744226685951,49.96,119.43,119.37,16.43699476]
[1744226686148,49.96,119.43,119.38,8.3805]
[1744226686446,49.96,119.43,119.37,16.43699476]
[1744226686639,49.96,119.43,119.39,16.43699476]
[1744226686843,49.96,119.43,119.39,16.49451842]
[1744226686844,0.05322843,119.41,119.39,16.49451842]
[1744226687048,49.96,119.47,119.39,16.49451842]
[1744226687251,58.9193,119.47,119.39,16.43699476]
[1744226687749,8.3767,119.44,119.41,8.3783]
[1744226687953,8.3767,119.44,119.39,16.43699476]
[1744226688153,8.43243363,119.44,119.41,0.06398495]
[1744226688353,0.05573363,119.44,119.41,0.06398495]
[1744226689254,8.3771,119.43,119.41,0.06398495]
[1744226689554,0.05573363,119.44,119.41,0.06398495]
[1744226689958,8.3771,119.43,119.41,0.06398495]
[1744226690249,0.05573363,119.44,119.41,8.44238495]
[1744226690558,0.05573363,119.44,119.41,8.44208495]
[1744226690952,0.05573363,119.44,119.41,0.06398495]
[1744226691661,8.43253363,119.44,119.41,8.44208495]
[1744226691860,0.05573363,119.44,119.41,0.06398495]
[1744226692160,0.05573363,119.44,119.42,8.3774]
[1744226692965,8.43213363,119.44,119.41,8.44218495]
[1744226693261,0.05573363,119.44,119.41,0.06398495]
[1744226693763,58.0975,119.43,119.41,0.06398495]
[1744226694065,0.05573363,119.44,119.41,16.50097971]
[1744226694362,0.05573363,119.44,119.43,8.3771]
[1744226694864,3.363e-05,119.44,119.43,24.81409476]
[1744226696065,3.363e-05,119.44,119.42,17.7006]
[1744226696368,3.363e-05,119.44,119.42,71.323]
[1744226696667,3.363e-05,119.44,119.43,8.3771]
[1744226697661,3.363e-05,119.44,119.42,76.5761]
[1744226698368,3.363e-05,119.44,119.43,8.3771]
[1744226699368,603.32,119.48,119.46,8.3745]
[1744226699555,49.72,119.5,119.45,16.43699476]
[1744226699970,49.7,119.54,119.45,16.43699476]
[1744226700167,49.7,119.57,119.49,16.43699476]
[1744226700365,0.06216692,119.5,119.48,0.05610995]
[1744226700567,3.1198,119.56,119.49,16.43699476]
[1744226700870,0.0558939,119.5,119.49,16.43699476]
[1744226701171,0.0631223,119.51,119.5,8.3718]
[1744226701668,8.3701,119.53,119.5,8.3718]
[1744226701669,0.05424456,119.52,119.5,8.3718]
[1744226701972,0.05424456,119.52,119.49,16.49965963]
[1744226702165,3.1198,119.56,119.51,16.43699476]
[1744226702562,8.3692,119.55,119.52,8.3704]
[1744226702758,3.1198,119.56,119.51,16.43699476]
[1744226702959,8.369,119.55,119.51,16.43699476]
[1744226703163,3.1198,119.56,119.51,16.43699476]
[1744226703363,0.06044323,119.54,119.52,0.06099235]
[1744226703564,49.7,119.53,119.45,66.13699476]
[1744226703773,49.7,119.53,119.45,22.37709476]
[1744226704072,49.7,119.53,119.45,5.9401]
[1744226704369,19.58599476,119.52,119.43,381.43699476]
[1744226704873,0.05560025,119.49,119.46,0.05413708]
[1744226705066,8.3743,119.47,119.46,0.05413708]
[1744226705763,49.68,119.48,119.41,5.9401]
[1744226706172,49.68,119.48,119.41,14.3182]
[1744226706672,49.68,119.48,119.42,8.3777]
[1744226706859,49.68,119.48,119.41,5.9401]
[1744226707060,0.05683897,119.46,119.44,0.05520993]
[1744226707259,0.05683897,119.46,119.44,8.43160993]
[1744226707859,0.05683897,119.46,119.45,8.3757]
[1744226708470,3.149,119.52,119.49,8.3727]
[1744226708676,652.42,119.53,119.46,26.25163466]
[1744226708861,26.25163466,119.52,119.41,370.9401]
[1744226709065,26.25163466,119.5,119.41,5.9401]
[1744226709269,6.0649,119.52,119.39,3.1026]
[1744226709270,8.3772,119.43,119.39,3.1026]
[1744226709473,49.7,119.45,119.41,8.3784]
[1744226709665,0.05606057,119.42,119.4,0.05985143]
[1744226711174,0.05606057,119.42,119.4,8.43875143]